fUST/lending_fUST_20250420
["ID","MTS","AMOUNT","RATE_DAILY","PERIOD"]
[358428137,1745140233475,-500.0,0.00019178,2]
[358428138,1745140233485,-500.0,0.00019178,2]
[358428139,1745140233495,-283.51885357,0.00019178,2]
[358428140,1745140233506,-500.0,0.00019178,2]
[358428141,1745140233516,-500.0,0.00019178,2]
[358428142,1745140233526,-500.0,0.00019178,2]
[358428143,1745140233536,-706.39,0.00019178,2]
[358428144,1745140233546,-500.0,0.00019178,2]
[358428145,1745140233567,-500.0,0.00019178,2]
[358428146,1745140233580,-500.0,0.00019178,2]
[358428147,1745140233590,-500.0,0.00019178,2]
[358428148,1745140233601,-500.0,0.00019178,2]
[358428149,1745140233611,-500.0,0.00019178,2]
[358428150,1745140233621,-500.0,0.00019178,2]
[358428151,1745140233631,-500.0,0.00019178,2]
[358428152,1745140233642,-500.0,0.00019178,2]
[358428153,1745140233652,-500.0,0.00019178,2]
[358428154,1745140233663,-500.0,0.00019178,2]
[358428155,1745140233673,-527.66,0.00019178,2]
[358428156,1745140233683,-500.0,0.00019178,2]
[358428157,1745140233693,-151.0,0.00019178,2]
[358428158,1745140233703,-151.0,0.00019178,2]
[358428159,1745140233714,-151.0,0.00019178,2]
[358428160,1745140233724,-500.0,0.00019178,2]
[358428161,1745140233735,-500.0,0.00019178,2]
[358428162,1745140233746,-500.0,0.00019178,2]
[358428163,1745140233757,-4090.69,0.00019178,2]
[358428164,1745140233767,-500.0,0.00019178,2]
[358428165,1745140233779,-548.79,0.00019178,2]
[358428166,1745140233790,-500.0,0.00019178,2]
[358428167,1745140233801,-500.0,0.00019178,2]
[358428168,1745140233812,-500.0,0.00019178,2]
[358428169,1745140233822,-500.0,0.00019178,2]
[358428170,1745140233833,-500.0,0.00019178,2]
[358428171,1745140233843,-500.0,0.00019178,2]
[358428172,1745140233854,-817.59,0.00019178,2]
[358428173,1745140233868,-1438.29,0.00019178,2]
[358428174,1745140233878,-500.0,0.00019178,2]
[358428175,1745140233888,-151.0,0.00019178,2]
[358428176,1745140233899,-266.19787755,0.00019178,2]
[358428177,1745140233910,-500.0,0.00019178,2]
[358428178,1745140233921,-151.0,0.00019178,2]
[358428179,1745140233932,-197.96075176,0.00019178,2]
[358428180,1745140233942,-500.0,0.00019178,2]
[358428181,1745140233953,-341.32451495,0.00019178,2]
[358428182,1745140233963,-2148.62,0.00019178,2]
[358428183,1745140233974,-529.43,0.00019178,2]
[358428184,1745140233985,-509.62413297,0.00019178,2]
[358428185,1745140233996,-503.49670878,0.00019178,2]
[358428186,1745140234007,-500.0,0.00019178,2]
[358428187,1745140234018,-500.0,0.00019178,2]
[358428188,1745140234029,-508.55267342,0.00019178,2]
[358428189,1745140234040,-1311.2,0.00019178,2]
[358428190,1745140234051,-505.07892582,0.00019178,2]
[358428191,1745140234061,-505.44853985,0.00019178,2]
[358428192,1745140234073,-4885.65,0.00019178,2]
[358428193,1745140234083,-261.4835672,0.00019178,2]
[358428194,1745140234094,-500.0,0.00019178,2]
[358428195,1745140234104,-503.32818773,0.00019178,2]
[358428196,1745140234116,-500.0,0.00019178,2]
[358428197,1745140234127,-3133.29,0.00019178,2]
[358428198,1745140234138,-683.58,0.00019178,2]
[358428199,1745140234149,-500.0,0.00019178,2]
[358428200,1745140234159,-500.0,0.00019178,2]
[358428201,1745140234169,-500.0,0.00019178,2]
[358428202,1745140234179,-1734.597079,0.00019178,2]
[358428203,1745140234189,-1734.597079,0.00019178,2]
[358428204,1745140234200,-500.0,0.00019178,2]
[358428205,1745140234210,-500.0,0.00019178,2]
[358428206,1745140234220,-151.319583,0.00019178,2]
[358428207,1745140234229,-558.21,0.00019178,2]
[358428208,1745140234238,-500.0,0.00019178,2]
[358428209,1745140234248,-500.0,0.00019178,2]
[358428210,1745140234259,-9793.41,0.00019178,2]
[358428211,1745140234268,-736.52,0.00019178,2]
[358428212,1745140234278,-500.0,0.00019178,2]
[358428213,1745140234288,-500.0,0.00019178,2]
[358428214,1745140234297,-1762.49,0.00019178,2]
[358428215,1745140234307,-383.06940021,0.00019178,2]
[358428216,1745140234317,-610.3,0.00019178,2]
[358428217,1745140234327,-500.0,0.00019178,2]
[358428218,1745140234337,-151.41949388,0.00019178,2]
[358428219,1745140234347,-500.0,0.00019178,2]
[358428220,1745140234358,-202.86520938,0.00019178,2]
[358428221,1745140234368,-500.0,0.00019178,2]
[358428222,1745140234378,-151.0,0.00019178,2]
[358428223,1745140234388,-500.0,0.00019178,2]
[358428224,1745140234398,-151.0,0.00019178,2]
[358428225,1745140234408,-500.0,0.00019178,2]
[358428226,1745140234418,-151.0,0.00019178,2]
[358428227,1745140234428,-151.0,0.00019178,2]
[358428228,1745140234438,-201.71072664,0.00019178,2]
[358428229,1745140234447,-500.0,0.00019178,2]
[358428230,1745140234457,-164.760122,0.00019178,2]
[358428231,1745140234467,-500.0,0.00019178,2]
[358428232,1745140234477,-500.0,0.00019178,2]
[358428233,1745140234487,-959.15,0.00019178,2]
[358428234,1745140234497,-500.0,0.00019178,2]
[358428235,1745140234507,-1000.0,0.00019178,2]
[358428236,1745140234517,-152.0,0.00019189,2]
[358428237,1745140234528,-1167.23,0.000192,2]
[358428238,1745140234539,-207.4,0.00019241,2]
[358428239,1745140234548,-151.0,0.00019241,2]
[358428240,1745140234558,-81952.24143679,0.00019252,2]
[358428241,1745140234568,-160.172663,0.00019252,2]
[358428242,1745140234578,-151.0,0.00019252,2]
[358428243,1745140234587,-180.847909,0.00019252,2]
[358428244,1745140234597,-151.0,0.00019252,2]
[358428245,1745140234606,-151.0,0.00019252,2]
[358428246,1745140234616,-151.0,0.00019252,2]
[358428247,1745140234626,-151.0,0.00019252,2]
[358428248,1745140234636,-202.774747,0.00019252,2]
[358428249,1745140234646,-246.987248,0.00019252,2]
[358428250,1745140234655,-246.987248,0.00019252,2]
[358428251,1745140234665,-246.987248,0.00019252,2]
[358428252,1745140234675,-246.987248,0.00019252,2]
[358428253,1745140234685,-202.749389,0.00019252,2]
[358428254,1745140234694,-151.0,0.00019252,2]
[358428255,1745140234704,-151.0,0.00019252,2]
[358428256,1745140234714,-151.0,0.00019252,2]
[358428257,1745140234723,-151.0,0.00019252,2]
[358428258,1745140234732,-1734.597079,0.00019252,2]
[358428259,1745140234743,-1734.597079,0.00019252,2]
[358428260,1745140234752,-1734.597079,0.00019252,2]
[358428261,1745140234761,-1734.597079,0.00019252,2]
[358428262,1745140234771,-151.0,0.00019252,2]
[358428263,1745140234780,-151.0,0.00019252,2]
[358428264,1745140234789,-370000.0,0.00019252,2]
[358428265,1745140234799,-211.228,0.00019258,2]
[358428266,1745140234809,-559.622,0.00019258,2]
[358428267,1745140234818,-707.0,0.00019258,2]
[358428268,1745140234828,-2248.0,0.00019258,2]
[358428269,1745140234837,-268.33081743,0.00019273,2]
[358428270,1745140234846,-504.56656241,0.00019273,2]
[358428271,1745140234857,-500.0,0.00019273,2]
[358428272,1745140234868,-500.0,0.00019273,2]
[358428273,1745140234878,-500.0,0.00019273,2]
[358428274,1745140234888,-500.0,0.00019273,2]
[358428275,1745140234897,-500.0,0.00019273,2]
[358428276,1745140234907,-500.0,0.00019273,2]
[358428277,1745140234917,-268.70277896,0.00019273,2]
[358428278,1745140234927,-500.0,0.00019273,2]
[358428279,1745140234937,-500.0,0.00019273,2]
[358428280,1745140234947,-500.0,0.00019273,2]
[358428281,1745140234957,-500.0,0.00019273,2]
[358428282,1745140234967,-500.0,0.00019273,2]
[358428283,1745140234977,-500.0,0.00019273,2]
[358428284,1745140234986,-500.0,0.00019273,2]
[358428285,1745140234996,-500.0,0.00019273,2]
[358428286,1745140235007,-500.0,0.00019273,2]
[358428287,1745140235016,-500.0,0.00019273,2]
[358428288,1745140235026,-300.0,0.00019273,2]
[358428289,1745140235036,-500.0,0.00019273,2]
[358428290,1745140235045,-500.0,0.00019273,2]
[358428291,1745140235056,-619.2059942,0.000193,2]
[358428292,1745140235066,-361.1558387,0.000193,2]
[358428293,1745140235076,-153.0,0.000193,2]
[358428294,1745140235086,-151.0,0.00019315,2]
[358428295,1745140235096,-151.0,0.00019315,2]
[358428296,1745140235106,-151.0,0.00019315,2]
[358428297,1745140235116,-202.55607985,0.00019315,2]
[358428298,1745140235125,-500.0,0.00019315,2]
[358428299,1745140235136,-500.0,0.00019315,2]
[358428300,1745140235145,-500.0,0.00019315,2]
[358428301,1745140235155,-151.0,0.00019315,2]
[358428302,1745140235165,-151.0,0.00019315,2]
[358428303,1745140235175,-1500.0,0.00019315,2]
[358428304,1745140235185,-155.5874151,0.00019315,2]
[358428305,1745140235195,-500.755,0.00019321,2]
[358428306,1745140235205,-1430.35487465,0.00019329,2]
[358428307,1745140235215,-959.36208316,0.00019337,2]
[358428308,1745140235226,-151.0,0.00019351,2]
[358428309,1745140235236,-151.0,0.00019351,2]
[358428310,1745140235246,-1375.00677178,0.00019351,2]
[358428311,1745140235256,-354.77992026,0.00019351,2]
[358428312,1745140235265,-301.25357409,0.00019452,2]
[358428313,1745140235274,-197.53968718,0.00019452,2]
[358428314,1745140235283,-500.0,0.00019452,2]
[358428315,1745140235293,-500.0,0.00019452,2]
[358428316,1745140235303,-500.0,0.00019452,2]
[358428317,1745140235313,-151.0,0.00019452,2]
[358428318,1745140235323,-290.86589716,0.00019452,2]
[358428319,1745140235333,-152.167418,0.00019452,2]
[358428320,1745140235343,-500.0,0.00019452,2]
[358428321,1745140235352,-151.0,0.00019452,2]
[358428322,1745140235362,-151.0,0.00019452,2]
[358428323,1745140235371,-151.0,0.00019452,2]
[358428324,1745140235381,-151.0,0.00019452,2]
[358428325,1745140235390,-585.04968339,0.00019452,2]
[358428326,1745140235400,-500.0,0.00019452,2]
[358428327,1745140235410,-516.28,0.00019452,2]
[358428328,1745140235420,-500.0,0.00019452,2]
[358428329,1745140235429,-500.0,0.00019452,2]
[358428330,1745140235439,-500.0,0.00019452,2]
[358428331,1745140235448,-500.0,0.00019452,2]
[358428332,1745140235458,-603.12,0.00019452,2]
[358428333,1745140235468,-500.0,0.00019452,2]
[358428334,1745140235477,-251.775974,0.00019452,2]
[358428335,1745140235487,-500.0,0.00019452,2]
[358428336,1745140235497,-151.0,0.00019452,2]
[358428337,1745140235507,-151.0,0.00019452,2]
[358428338,1745140235516,-500.0,0.00019452,2]
[358428339,1745140235526,-500.0,0.00019452,2]
[358428340,1745140235536,-500.0,0.00019452,2]
[358428341,1745140235545,-500.0,0.00019452,2]
[358428342,1745140235555,-500.0,0.00019452,2]
[358428343,1745140235566,-500.0,0.00019452,2]
[358428344,1745140235575,-500.0,0.00019452,2]
[358428345,1745140235585,-500.0,0.00019452,2]
[358428346,1745140235595,-500.0,0.00019452,2]
[358428347,1745140235604,-500.0,0.00019452,2]
[358428348,1745140235614,-500.0,0.00019452,2]
[358428349,1745140235623,-500.0,0.00019452,2]
[358428350,1745140235633,-500.0,0.00019452,2]
[358428351,1745140235643,-528.87,0.00019452,2]
[358428352,1745140235653,-500.0,0.00019452,2]
[358428353,1745140235663,-500.0,0.00019452,2]
[358428354,1745140235672,-500.0,0.00019452,2]
[358428355,1745140235682,-500.0,0.00019452,2]
[358428356,1745140235691,-538.8871225,0.00019452,2]
[358428357,1745140235702,-151.0,0.00019452,2]
[358428358,1745140235712,-151.44166784,0.00019452,2]
[358428359,1745140235722,-500.0,0.00019452,2]
[358428360,1745140235732,-500.0,0.00019452,2]
[358428361,1745140235741,-500.0,0.00019452,2]
[358428362,1745140235751,-500.0,0.00019452,2]
[358428363,1745140235760,-500.0,0.00019452,2]
[358428364,1745140235770,-724.16,0.00019452,2]
[358428365,1745140235780,-500.0,0.00019452,2]
[358428366,1745140235790,-550.75,0.00019452,2]
[358428367,1745140235800,-500.0,0.00019452,2]
[358428368,1745140235810,-500.0,0.00019452,2]
[358428369,1745140235819,-500.0,0.00019452,2]
[358428370,1745140235829,-500.0,0.00019452,2]
[358428371,1745140235838,-292.45382716,0.00019452,2]
[358428372,1745140235847,-500.0,0.00019452,2]
[358428373,1745140235859,-500.0,0.00019452,2]
[358428374,1745140235869,-500.0,0.00019452,2]
[358428375,1745140235879,-500.0,0.00019452,2]
[358428376,1745140235888,-930.32,0.00019452,2]
[358428377,1745140235898,-500.0,0.00019452,2]
[358428378,1745140235907,-500.0,0.00019452,2]
[358428379,1745140235918,-500.0,0.00019452,2]
[358428380,1745140235928,-500.0,0.00019452,2]
[358428381,1745140235938,-500.0,0.00019452,2]
[358428382,1745140235948,-500.0,0.00019452,2]
[358428383,1745140235958,-151.0,0.00019452,2]
[358428384,1745140235967,-254.698396,0.00019452,2]
[358428385,1745140235978,-500.0,0.00019452,2]
[358428386,1745140235988,-706.39,0.00019452,2]
[358428387,1745140235998,-500.0,0.00019452,2]
[358428388,1745140236008,-500.0,0.00019452,2]
[358428389,1745140236017,-500.0,0.00019452,2]
[358428390,1745140236028,-500.0,0.00019452,2]
[358428391,1745140236037,-500.0,0.00019452,2]
[358428392,1745140236047,-151.0,0.00019452,2]
[358428393,1745140236057,-151.0,0.00019452,2]
[358428394,1745140236067,-500.0,0.00019452,2]
[358428395,1745140236078,-500.0,0.00019452,2]
[358428396,1745140236087,-500.0,0.00019452,2]
[358428397,1745140236097,-500.0,0.00019452,2]
[358428398,1745140236108,-500.0,0.00019452,2]
[358428399,1745140236117,-500.0,0.00019452,2]
[358428400,1745140236127,-527.66,0.00019452,2]
[358428401,1745140236140,-246.987248,0.00019452,2]
[358428402,1745140236149,-246.987248,0.00019452,2]
[358428403,1745140236159,-500.0,0.00019452,2]
[358428404,1745140236169,-246.987248,0.00019452,2]
[358428405,1745140236179,-246.987248,0.00019452,2]
[358428406,1745140236191,-500.0,0.00019452,2]
[358428407,1745140236203,-155.35280612,0.00019452,2]
[358428408,1745140236212,-500.0,0.00019452,2]
[358428409,1745140236222,-4090.69,0.00019452,2]
[358428410,1745140236232,-500.0,0.00019452,2]
[358428411,1745140236242,-548.79,0.00019452,2]
[358428412,1745140236251,-500.0,0.00019452,2]
[358428413,1745140236261,-500.0,0.00019452,2]
[358428414,1745140236271,-500.0,0.00019452,2]
[358428415,1745140236280,-500.0,0.00019452,2]
[358428416,1745140236290,-500.0,0.00019452,2]
[358428417,1745140236300,-151.0,0.00019452,2]
[358428418,1745140236309,-151.0,0.00019452,2]
[358428419,1745140236319,-151.0,0.00019452,2]
[358428420,1745140236328,-268.444593,0.00019452,2]
[358428421,1745140236338,-500.0,0.00019452,2]
[358428422,1745140236347,-817.59,0.00019452,2]
[358428423,1745140236356,-1438.29,0.00019452,2]
[358428424,1745140236366,-500.0,0.00019452,2]
[358428425,1745140236376,-500.0,0.00019452,2]
[358428426,1745140236386,-500.0,0.00019452,2]
[358428427,1745140236396,-2148.62,0.00019452,2]
[358428428,1745140236405,-529.43,0.00019452,2]
[358428429,1745140236415,-608.7435405,0.00019452,2]
[358428430,1745140236424,-1311.2,0.00019452,2]
[358428431,1745140236433,-4885.65,0.00019452,2]
[358428432,1745140236443,-500.0,0.00019452,2]
[358428433,1745140236452,-398.07002714,0.00019452,2]
[358428434,1745140236461,-3133.29,0.00019452,2]
[358428435,1745140236471,-683.58,0.00019452,2]
[358428436,1745140236481,-500.0,0.00019452,2]
[358428437,1745140236490,-500.0,0.00019452,2]
[358428438,1745140236499,-500.0,0.00019452,2]
[358428439,1745140236509,-1734.597079,0.00019452,2]
[358428440,1745140236519,-1734.597079,0.00019452,2]
[358428441,1745140236528,-1734.597079,0.00019452,2]
[358428442,1745140236537,-1734.597079,0.00019452,2]
[358428443,1745140236547,-500.0,0.00019452,2]
[358428444,1745140236556,-500.0,0.00019452,2]
[358428445,1745140236566,-558.21,0.00019452,2]
[358428446,1745140236575,-500.0,0.00019452,2]
[358428447,1745140236585,-500.0,0.00019452,2]
[358428448,1745140236595,-9793.41,0.00019452,2]
[358428449,1745140236604,-736.52,0.00019452,2]
[358428450,1745140236614,-500.0,0.00019452,2]
[358428451,1745140236623,-500.0,0.00019452,2]
[358428452,1745140236634,-1762.49,0.00019452,2]
[358428453,1745140236644,-610.3,0.00019452,2]
[358428454,1745140236654,-500.0,0.00019452,2]
[358428455,1745140236664,-500.0,0.00019452,2]
[358428456,1745140236674,-151.0,0.00019452,2]
[358428457,1745140236684,-163.825198,0.00019452,2]
[358428458,1745140236693,-500.0,0.00019452,2]
[358428459,1745140236703,-500.0,0.00019452,2]
[358428460,1745140236712,-500.0,0.00019452,2]
[358428461,1745140236722,-959.15,0.00019452,2]
[358428462,1745140236732,-500.0,0.00019452,2]
[358428463,1745140236742,-2000.0,0.00019452,2]
[358428464,1745140236895,-204.61416348,0.00019506,2]
[358428465,1745140236906,-500.0,0.00019589,2]
[358428466,1745140236916,-500.0,0.00019589,2]
[358428467,1745140236927,-500.0,0.00019589,2]
[358428468,1745140236937,-151.0,0.00019589,2]
[358428469,1745140236946,-500.0,0.00019589,2]
[358428470,1745140236956,-151.0,0.00019589,2]
[358428471,1745140236966,-151.0,0.00019589,2]
[358428472,1745140236976,-151.0,0.00019589,2]
[358428473,1745140236985,-500.0,0.00019589,2]
[358428474,1745140236994,-1734.597079,0.00019589,2]
[358428475,1745140237004,-1734.597079,0.00019589,2]
[358428476,1745140237014,-2500.0,0.00019589,2]
[358428477,1745140237023,-151.0,0.000196,2]
[358428478,1745140237033,-151.0,0.00019601,2]
[358428479,1745140237043,-246.987248,0.00019601,2]
[358428480,1745140237053,-246.987248,0.00019601,2]
[358428481,1745140237063,-151.0,0.00019601,2]
[358428482,1745140237072,-319.0,0.00019601,2]
[358428483,1745140237082,-319.0,0.00019601,2]
[358428484,1745140237092,-319.0,0.00019601,2]
[358428485,1745140237102,-319.0,0.00019601,2]
[358428486,1745140237112,-319.0,0.00019601,2]
[358428487,1745140237121,-319.0,0.00019601,2]
[358428488,1745140237131,-319.0,0.00019601,2]
[358428489,1745140237141,-319.0,0.00019601,2]
[358428490,1745140237151,-319.0,0.00019601,2]
[358428491,1745140237161,-319.0,0.00019601,2]
[358428492,1745140237170,-319.0,0.00019601,2]
[358428493,1745140237182,-319.0,0.00019601,2]
[358428494,1745140237191,-319.0,0.00019601,2]
[358428495,1745140237201,-319.0,0.00019601,2]
[358428496,1745140237211,-319.0,0.00019601,2]
[358428497,1745140237221,-319.0,0.00019601,2]
[358428498,1745140237231,-319.0,0.00019601,2]
[358428499,1745140237242,-319.0,0.00019601,2]
[358428500,1745140237253,-319.0,0.00019601,2]
[358428501,1745140237265,-319.0,0.00019601,2]
[358428502,1745140237276,-370.19998625,0.00019601,2]
[358428503,1745140237286,-359.0,0.00019601,2]
[358428504,1745140237296,-359.0,0.00019601,2]
[358428505,1745140237307,-359.0,0.00019601,2]
[358428506,1745140237318,-359.0,0.00019601,2]
[358428507,1745140237328,-359.0,0.00019601,2]
[358428508,1745140237339,-359.0,0.00019601,2]
[358428509,1745140237348,-359.0,0.00019601,2]
[358428510,1745140237360,-359.0,0.00019601,2]
[358428511,1745140237369,-359.0,0.00019601,2]
[358428512,1745140237378,-359.0,0.00019601,2]
[358428513,1745140237388,-359.0,0.00019601,2]
[358428514,1745140237398,-359.0,0.00019601,2]
[358428515,1745140237407,-359.0,0.00019601,2]
[358428516,1745140237417,-359.0,0.00019601,2]
[358428517,1745140237426,-359.0,0.00019601,2]
[358428518,1745140237436,-359.0,0.00019601,2]
[358428519,1745140237445,-359.0,0.00019601,2]
[358428520,1745140237455,-359.0,0.00019601,2]
[358428521,1745140237464,-359.0,0.00019601,2]
[358428522,1745140237473,-359.0,0.00019601,2]
[358428523,1745140237482,-359.0,0.00019601,2]
[358428524,1745140237491,-359.0,0.00019601,2]
[358428525,1745140237501,-433.98620838,0.00019601,2]
[358428526,1745140237511,-192.0,0.00019621,2]
[358428527,1745140237521,-226.44693186,0.00019695,2]
[358428528,1745140237530,-160.0,0.00019699,2]
[358428529,1745140237540,-160.0,0.00019699,2]
[358428530,1745140237549,-839.54484285,0.00019699,2]
[358428531,1745140237558,-420.58168056,0.00019699,2]
[358428532,1745140237568,-160.0,0.00019699,2]
[358428533,1745140237578,-160.0,0.00019699,2]
[358428534,1745140237587,-160.0,0.00019699,2]
[358428535,1745140237597,-12565.32410885,0.00019699,2]
[358428536,1745140237607,-151.0,0.000197,2]
[358428537,1745140237616,-375.51952508,0.00019726,2]
[358428538,1745140237626,-500.0,0.00019726,2]
[358428539,1745140237637,-500.0,0.00019726,2]
[358428540,1745140237647,-151.0,0.00019726,2]
[358428541,1745140237656,-500.0,0.00019726,2]
[358428542,1745140237666,-151.0,0.00019726,2]
[358428543,1745140237676,-151.0,0.00019726,2]
[358428544,1745140237685,-151.0,0.00019726,2]
[358428545,1745140237695,-500.0,0.00019726,2]
[358428546,1745140237705,-500.0,0.00019726,2]
[358428547,1745140237714,-151.0,0.00019726,2]
[358428548,1745140237723,-151.0,0.00019726,2]
[358428549,1745140237733,-151.0,0.00019726,2]
[358428550,1745140237743,-151.0,0.00019726,2]
[358428551,1745140237752,-151.0,0.00019726,2]
[358428552,1745140237762,-151.0,0.00019726,2]
[358428553,1745140237771,-272.11691183,0.00019726,2]
[358428554,1745140237780,-516.28,0.00019726,2]
[358428555,1745140237790,-500.0,0.00019726,2]
[358428556,1745140237800,-500.0,0.00019726,2]
[358428557,1745140237809,-500.0,0.00019726,2]
[358428558,1745140237819,-500.0,0.00019726,2]
[358428559,1745140237828,-603.12,0.00019726,2]
[358428560,1745140237838,-500.0,0.00019726,2]
[358428561,1745140237847,-500.0,0.00019726,2]
[358428562,1745140237857,-500.0,0.00019726,2]
[358428563,1745140237868,-500.0,0.00019726,2]
[358428564,1745140237877,-500.0,0.00019726,2]
[358428565,1745140237887,-500.0,0.00019726,2]
[358428566,1745140237897,-500.0,0.00019726,2]
[358428567,1745140237908,-500.0,0.00019726,2]
[358428568,1745140237918,-500.0,0.00019726,2]
[358428569,1745140237928,-500.0,0.00019726,2]
[358428570,1745140237937,-500.0,0.00019726,2]
[358428571,1745140237947,-500.0,0.00019726,2]
[358428572,1745140237956,-500.0,0.00019726,2]
[358428573,1745140237966,-500.0,0.00019726,2]
[358428574,1745140237975,-528.87,0.00019726,2]
[358428575,1745140237985,-555.90782684,0.00019726,2]
[358428576,1745140237994,-500.0,0.00019726,2]
[358428577,1745140238004,-500.0,0.00019726,2]
[358428579,1745140238014,-500.0,0.00019726,2]
[358428580,1745140238024,-500.0,0.00019726,2]
[358428581,1745140238034,-500.0,0.00019726,2]
[358428582,1745140238043,-500.0,0.00019726,2]
[358428583,1745140238053,-724.16,0.00019726,2]
[358428584,1745140238063,-500.0,0.00019726,2]
[358428585,1745140238073,-550.75,0.00019726,2]
[358428586,1745140238083,-500.0,0.00019726,2]
[358428587,1745140238094,-500.0,0.00019726,2]
[358428589,1745140238103,-500.0,0.00019726,2]
[358428590,1745140238113,-559.01110723,0.00019726,2]
[358428591,1745140238122,-500.0,0.00019726,2]
[358428592,1745140238132,-500.0,0.00019726,2]
[358428593,1745140238142,-500.0,0.00019726,2]
[358428594,1745140238151,-500.0,0.00019726,2]
[358428595,1745140238162,-930.32,0.00019726,2]
[358428596,1745140238171,-500.0,0.00019726,2]
[358428597,1745140238181,-500.0,0.00019726,2]
[358428598,1745140238191,-500.0,0.00019726,2]
[358428599,1745140238200,-500.0,0.00019726,2]
[358428600,1745140238209,-500.0,0.00019726,2]
[358428601,1745140238219,-500.0,0.00019726,2]
[358428602,1745140238229,-500.0,0.00019726,2]
[358428603,1745140238238,-706.39,0.00019726,2]
[358428604,1745140238247,-500.0,0.00019726,2]
[358428605,1745140238257,-500.0,0.00019726,2]
[358428606,1745140238267,-500.0,0.00019726,2]
[358428608,1745140238277,-500.0,0.00019726,2]
[358428610,1745140238287,-500.0,0.00019726,2]
[358428612,1745140238297,-151.0,0.00019726,2]
[358428614,1745140238306,-151.0,0.00019726,2]
[358428616,1745140238316,-151.0,0.00019726,2]
[358428618,1745140238325,-500.0,0.00019726,2]
[358428620,1745140238334,-500.0,0.00019726,2]
[358428622,1745140238344,-500.0,0.00019726,2]
[358428624,1745140238354,-500.0,0.00019726,2]
[358428626,1745140238363,-500.0,0.00019726,2]
[358428628,1745140238373,-500.0,0.00019726,2]
[358428630,1745140238382,-527.66,0.00019726,2]
[358428632,1745140238392,-246.987248,0.00019726,2]
[358428634,1745140238401,-246.987248,0.00019726,2]
[358428636,1745140238411,-246.987248,0.00019726,2]
[358428638,1745140238421,-500.0,0.00019726,2]
[358428640,1745140238430,-246.987248,0.00019726,2]
[358428642,1745140238440,-246.987248,0.00019726,2]
[358428644,1745140238449,-246.987248,0.00019726,2]
[358428646,1745140238459,-500.0,0.00019726,2]
[358428648,1745140238468,-500.0,0.00019726,2]
[358428650,1745140238478,-4090.69,0.00019726,2]
[358428652,1745140238488,-500.0,0.00019726,2]
[358428654,1745140238497,-548.79,0.00019726,2]
[358428655,1745140238508,-500.0,0.00019726,2]
[358428656,1745140238518,-500.0,0.00019726,2]
[358428657,1745140238527,-500.0,0.00019726,2]
[358428658,1745140238541,-500.0,0.00019726,2]
[358428660,1745140238554,-500.0,0.00019726,2]
[358428662,1745140238567,-151.0,0.00019726,2]
[358428663,1745140238580,-151.0,0.00019726,2]
[358428664,1745140238593,-151.0,0.00019726,2]